bitfinex-derivatives/quotes_SOLF0:USTF0_20260126
["timestamp","ask_amount","ask_price","bid_price","bid_amount"]
[1769409456135,3.30054667,122.46,122.41,1.01961586]
[1769409459238,3.30054667,122.46,122.42,0.05217784]
[1769409469846,3.30054667,122.45,122.39,1.0717937]
[1769409470048,3.35594618,122.45,122.39,1.0717937]
[1769409470350,3.35594618,122.45,122.39,3.78919924]
[1769409470951,3.35594618,122.45,122.39,11.15249924]
[1769409473254,3.35594618,122.45,122.4,1.0717937]
[1769409478857,3.35594618,122.45,122.41,1.0717937]
[1769409481258,3.35594618,122.45,122.4,7.3626]
[1769409482563,3.35594618,122.45,122.4,8.4343937]
[1769409493570,0.05539951,122.45,122.41,8.06521926]
[1769409493769,0.05539951,122.45,122.42,0.70311926]
[1769409501373,0.05539951,122.45,122.42,8.06461926]
[1769409506783,0.05539951,122.45,122.43,0.70171808]
[1769409509979,3.24540043,122.48,122.43,0.70171808]
[1769409510377,3.24540043,122.48,122.43,0.75499997]
[1769409512881,3.24540043,122.48,122.44,0.70171808]
[1769409525683,3.24540043,122.48,122.43,10.13417547]
[1769409525887,3.24540043,122.48,122.43,8.11492908]
[1769409528687,3.24540043,122.48,122.44,0.70074719]
[1769409530485,3.24540043,122.48,122.43,7.41418189]
[1769409530991,3.24540043,122.48,122.43,0.05328189]
[1769409531288,5.96539401,122.48,122.43,0.05328189]
[1769409531482,3.34613653,122.47,122.43,0.05328189]
[1769409532490,3.34613653,122.46,122.4,8.06334719]
[1769409532686,3.39794998,122.46,122.4,8.06334719]
[1769409533690,3.39794998,122.46,122.4,10.78334077]
[1769409535896,3.39794998,122.46,122.41,0.70074719]
[1769409540296,3.39794998,122.46,122.41,3.42074077]
[1769409540596,3.39794998,122.46,122.42,0.70074719]
[1769409541697,0.05181345,122.46,122.42,0.70074719]
[1769409542397,0.05181345,122.46,122.42,3.42074077]
[1769409545699,0.05181345,122.46,122.42,0.70074719]
[1769409546702,3.39782844,122.46,122.42,0.70074719]
[1769409553212,3.39782844,122.46,122.41,2.71894055]
[1769409553726,3.39782844,122.46,122.41,3.06896006]
[1769409554620,3.39782844,122.46,122.41,0.35001951]
[1769409557225,3.39782844,122.46,122.4,7.3626]
[1769409557520,3.35596542,122.45,122.39,0.70126249]
[1769409558218,3.35596542,122.45,122.39,8.06456249]
[1769409558416,0.05558403,122.43,122.39,8.06456249]
[1769409559620,3.41154945,122.43,122.39,8.06456249]
[1769409563620,3.41154945,122.43,122.39,0.70126249]
[1769409564029,3.41154945,122.43,122.37,336.80440304]
[1769409564525,3.41154945,122.43,122.38,0.70126249]
[1769409565724,3.41154945,122.43,122.37,336.10314055]
[1769409565725,3.35596542,122.42,122.37,7.3642]
[1769409566025,3.35596542,122.42,122.36,3.42020304]
[1769409566820,0.05664354,122.4,122.36,3.42020304]
[1769409567925,0.05664354,122.4,122.36,10.78530304]
[1769409570225,0.05664354,122.4,122.36,8.06636249]
[1769409571125,0.05664354,122.4,122.36,10.78530304]
[1769409576830,0.00336165,122.4,122.37,3.42246288]
[1769409579032,0.00336165,122.4,122.37,3.4745321]
[1769409581135,0.00336165,122.4,122.37,0.75559155]
[1769409585535,0.00336165,122.4,122.37,3.4745321]
[1769409586538,0.00336165,122.4,122.37,0.75559155]
[1769409602654,0.00336165,122.4,122.37,3.4745321]
[1769409602843,0.00336165,122.4,122.38,0.70352233]
[1769409604952,3.28665903,122.44,122.39,3.06976307]
[1769409605751,3.41517789,122.42,122.37,7.71502252]
[1769409606348,3.41517789,122.42,122.38,0.06040144]
[1769409610753,6.13554732,122.42,122.36,0.35082252]
[1769409610950,6.18888269,122.41,122.36,0.35082252]
[1769409611453,6.03525787,122.41,122.36,0.35082252]
[1769409611850,3.46851326,122.41,122.36,0.35082252]
[1769409612053,3.46851326,122.41,122.36,7.71592252]
[1769409612857,0.05333537,122.41,122.37,7.71532252]
[1769409613257,0.05333537,122.41,122.37,10.28206713]
[1769409616157,0.05333537,122.41,122.38,7.71462252]
[1769409616356,0.05333537,122.41,122.38,10.28136713]
[1769409617048,0.05333537,122.41,122.38,7.71462252]
[1769409620765,3.42347915,122.45,122.4,0.65360484]
[1769409622461,3.42347915,122.45,122.41,0.05226989]
[1769409624964,3.42347915,122.44,122.41,0.05226989]
[1769409625166,3.42347915,122.43,122.38,0.65360484]
[1769409625362,3.42347915,122.42,122.38,0.65360484]
[1769409626459,0.05758305,122.41,122.38,0.65360484]
[1769409629370,0.00531316,122.41,122.39,0.65360484]
[1769409630270,0.00531316,122.41,122.38,3.22034945]
[1769409631267,0.00531316,122.41,122.38,3.27180634]
[1769409631467,0.00531316,122.41,122.38,0.70506173]
[1769409632972,3.42879231,122.41,122.36,3.22034945]
[1769409633273,3.42879231,122.41,122.36,0.65360484]
[1769409633574,0.00531316,122.41,122.37,0.29909248]
[1769409634978,0.00531316,122.41,122.37,2.86583709]
[1769409636472,0.00531316,122.41,122.38,0.29909248]
[1769409639974,3.52383593,122.44,122.39,2.86583709]
[1769409641866,3.52383593,122.44,122.39,10.22903709]
[1769409642271,0.05345442,122.43,122.39,10.22903709]
[1769409642781,0.00199753,122.43,122.4,2.86583709]
[1769409643077,0.00199753,122.43,122.4,2.92733179]
[1769409644778,0.00199753,122.43,122.4,0.36058718]
[1769409659682,3.52583346,122.43,122.4,0.0614947]
[1769409659884,3.52583346,122.43,122.38,0.29909248]
[1769409660785,3.52383593,122.42,122.36,0.29909248]
[1769409661686,0.05800717,122.4,122.36,0.29909248]
[1769409663492,0.05800717,122.4,122.37,0.65166324]
[1769409665991,7.3606,122.44,122.37,0.65166324]
[1769409665992,3.40194959,122.44,122.38,0.65166324]
[1769409666292,5.9686942,122.44,122.38,0.65166324]
[1769409667391,5.9686942,122.44,122.4,0.05995572]
[1769409667594,5.96741337,122.44,122.4,0.05995572]
[1769409667785,3.40194959,122.43,122.4,0.05995572]
[1769409675698,5.96741337,122.45,122.4,0.05995572]
[1769409675997,3.40194959,122.44,122.4,0.05995572]
[1769409678197,3.3289143,122.43,122.38,7.3639]
[1769409679201,5.89437808,122.43,122.38,7.3639]
[1769409680494,5.89437808,122.43,122.38,8.07590483]
[1769409680695,3.3289143,122.43,122.38,8.07590483]
[1769409681999,3.3289143,122.43,122.38,0.71200483]
[1769409682203,3.26853228,122.42,122.38,0.71200483]
[1769409683402,5.83399606,122.42,122.36,8.07690483]
[1769409683602,3.26853228,122.41,122.36,8.07690483]
[1769409684306,0.0601349,122.4,122.36,8.07690483]
[1769409689507,3.26853228,122.39,122.34,8.07810483]
[1769409689706,3.26853228,122.39,122.35,0.71200483]
[1769409691008,3.26853228,122.39,122.33,651.38732849]
[1769409691408,5.83399606,122.39,122.33,648.82186471]
[1769409691705,5.83399606,122.38,122.33,648.82186471]
[1769409691911,0.05705424,122.37,122.33,648.82186471]
[1769409695513,0.05705424,122.37,122.33,651.38732849]
[1769409699216,0.05705424,122.37,122.34,0.71329197]
[1769409701215,0.05705424,122.37,122.33,648.10985988]
[1769409701616,0.05705424,122.37,122.33,321.96985988]
[1769409702006,0.05705424,122.37,122.33,322.68315185]
[1769409706419,0.05705424,122.37,122.34,0.71329197]
[1769409707517,0.05705424,122.37,122.34,3.27875575]
[1769409707717,0.05705424,122.37,122.34,0.71329197]
[1769409710727,0.05705424,122.37,122.34,3.27875575]
[1769409711432,0.05705424,122.37,122.35,0.71329197]
[1769409711816,10.89873283,122.42,122.35,2.56546378]
[1769409712023,3.53673283,122.41,122.37,0.71329197]
[1769409712734,3.53673283,122.41,122.36,2.56546378]
[1769409712926,3.53673283,122.44,122.4,2.56546378]
[1769409713425,3.53673283,122.46,122.4,3.27875575]
[1769409714026,3.53673283,122.46,122.41,3.27875575]
[1769409714228,3.53673283,122.46,122.42,0.05877565]
[1769409715832,0.06193495,122.45,122.42,0.05877565]
[1769409719027,6.16413156,122.45,122.39,8.07649197]
[1769409719535,3.59866778,122.45,122.4,0.71329197]
[1769409726438,6.0044774,122.43,122.38,0.35824936]
[1769409727338,0.05422856,122.42,122.38,0.35824936]
[1769409746350,0.05422856,122.42,122.39,0.71085935]
[1769409746547,5.8132554,122.45,122.39,0.76362274]
[1769409747643,3.24730019,122.44,122.39,0.76362274]
[1769409750557,0.05658907,122.43,122.39,0.76362274]
[1769409751156,0.05658907,122.43,122.4,0.71085935]
[1769409752559,0.05658907,122.43,122.41,0.71085935]
[1769409756261,3.24730019,122.46,122.41,0.71085935]
[1769409757061,6.05689378,122.48,122.42,0.65431098]
[1769409757653,6.05689378,122.48,122.44,0.05332651]
[1769409758051,3.49093857,122.48,122.44,0.05332651]
[1769409758864,6.05689378,122.5,122.44,0.70763749]
[1769409759364,3.49093857,122.49,122.44,0.70763749]
[1769409759764,6.05689378,122.49,122.44,0.70763749]
[1769409760168,3.49093857,122.48,122.44,0.05332651]
[1769409766071,6.05689378,122.48,122.44,0.05332651]
[1769409766272,3.49093857,122.47,122.44,0.05332651]
[1769409781803,3.49093857,122.49,122.44,0.05332651]
[1769409785006,6.05689378,122.49,122.44,0.05332651]
[1769409785304,3.42661466,122.48,122.44,0.05332651]
[1769409789602,2.56332696,122.49,122.39,7.363]
[1769409789603,3.42661466,122.44,122.39,7.363]
[1769409791109,0.05160726,122.43,122.4,0.06201203]
[1769409796605,0.05160726,122.43,122.4,2.62533899]
[1769409799621,0.05160726,122.43,122.41,2.56332696]
[1769409801917,0.05160726,122.43,122.41,3.27430696]
[1769409802121,3.55205603,122.46,122.41,3.27430696]
[1769409802725,3.55205603,122.47,122.43,2.56332696]
[1769409803125,3.55205603,122.47,122.42,3.27430696]
[1769409803725,3.55205603,122.47,122.44,0.05954564]
[1769409807326,3.55205603,122.48,122.44,0.05954564]
[1769409808626,3.55205603,122.47,122.44,0.05954564]
[1769409809127,3.55205603,122.46,122.39,8.13352564]
[1769409809326,3.55205603,122.45,122.39,10.6968526]
[1769409809532,3.55205603,122.45,122.4,2.56332696]
[1769409810029,3.55205603,122.45,122.4,5.89717956]
[1769409813641,3.55205603,122.45,122.41,2.56332696]
[1769409815247,3.29815838,122.47,122.41,5.89597667]
[1769409816144,3.29815838,122.47,122.42,3.33264971]
[1769409816947,3.29815838,122.47,122.42,5.89597667]
[1769409818450,3.29815838,122.47,122.43,2.56332696]
[1769409819346,3.29815838,122.49,122.43,5.89597667]
[1769409823953,3.29815838,122.48,122.42,5.89597667]
[1769409824145,5.86148534,122.48,122.42,5.89597667]
[1769409824345,3.29815838,122.48,122.43,2.56332696]
[1769409824751,3.29815838,122.48,122.43,5.89597667]
[1769409824955,3.29815838,122.48,122.44,5.89597667]
[1769409826856,3.29815838,122.5,122.44,5.89597667]
[1769409829051,3.29815838,122.5,122.45,2.56332696]
[1769409829956,3.29815838,122.5,122.45,5.89597667]
[1769409830956,3.29815838,122.51,122.47,2.56332696]
[1769409831152,3.29815838,122.51,122.46,5.89597667]
[1769409833565,3.29815838,122.51,122.46,3.33264971]
[1769409833763,3.29815838,122.5,122.45,5.89597667]
[1769409835262,3.29815838,122.5,122.45,3.33264971]
[1769409837360,3.29815838,122.49,122.45,3.33264971]
[1769409837963,5.86148534,122.49,122.43,5.89597667]
[1769409839165,3.29815838,122.49,122.44,3.33264971]
[1769409840969,5.86148534,122.49,122.44,3.33264971]
[1769409842770,3.29815838,122.49,122.44,3.33264971]
[1769409851271,5.86119491,122.49,122.44,3.33264971]
[1769409855076,3.5197514,122.48,122.44,3.33264971]
[1769409855375,3.5197514,122.48,122.43,2.56303653]
[1769409855376,2.56303653,122.45,122.38,3.43166539]
[1769409855562,203.22,122.47,122.4,5.99470192]
[1769409855563,2.56303653,122.47,122.4,5.99470192]
[1769409856276,2.56303653,122.47,122.41,3.43166539]
[1769409856577,2.56303653,122.48,122.41,5.99470192]
[1769409856770,2.56303653,122.47,122.41,5.99470192]
[1769409857369,5.99929155,122.47,122.41,3.43166539]
[1769409857570,3.43625502,122.46,122.41,3.43166539]
[1769409864680,3.43625502,122.46,122.41,5.99470192]
[1769409871681,3.43625502,122.46,122.41,13.35680192]
[1769409874682,3.29214837,122.49,122.43,3.282149]
[1769409874877,3.29214837,122.49,122.44,5.84518553]
[1769409875773,3.29214837,122.49,122.44,3.282149]
[1769409876482,3.29214837,122.51,122.45,5.84518553]
[1769409876671,3.29214837,122.5,122.45,3.282149]
[1769409880585,5.8551849,122.49,122.45,3.282149]
[1769409882187,3.29214837,122.49,122.45,3.282149]
[1769409883388,3.29214837,122.5,122.45,3.282149]
[1769409886390,3.29214837,122.5,122.45,5.84518553]
[1769409893997,3.29214837,122.5,122.45,3.282149]
[1769409898497,3.29214837,122.5,122.45,5.84518553]
[1769409898696,3.29214837,122.5,122.46,3.282149]
[1769409899099,3.29214837,122.52,122.46,5.84518553]
[1769409899404,5.8551849,122.52,122.46,3.282149]
[1769409899701,3.29214837,122.51,122.46,3.282149]
[1769409901100,3.29214837,122.51,122.46,5.84518553]
[1769409901697,228.12355492,122.53,122.47,3.282149]
[1769409901897,225.56051839,122.53,122.48,5.84518553]
[1769409902094,3.29214837,122.55,122.49,3.282149]
[1769409902298,3.29214837,122.55,122.51,3.282149]
[1769409902503,3.29214837,122.57,122.51,5.84518553]
[1769409902806,2.56303653,122.58,122.51,5.84518553]
[1769409902807,3.29214837,122.61,122.54,3.282149]
[1769409903004,3.29214837,122.6,122.54,3.282149]
[1769409903208,3.66211208,122.58,122.52,6.17986124]
[1769409903507,3.66211208,122.61,122.56,3.61682471]
[1769409903708,3.66211208,122.61,122.56,6.17986124]
[1769409904101,211.65810512,122.63,122.57,6.17986124]
[1769409904307,3.66211208,122.63,122.58,3.61682471]
[1769409905201,3.66211208,122.62,122.56,6.17986124]
[1769409905398,13.57394861,122.64,122.57,6.17986124]
[1769409905603,3.66211208,122.63,122.57,6.17986124]
[1769409906310,6.22514861,122.63,122.57,3.61682471]
[1769409906504,6.22514861,122.62,122.55,6.17986124]
[1769409906909,6.22514861,122.62,122.56,3.61682471]
[1769409907220,6.22514861,122.61,122.56,3.61682471]
[1769409907510,6.22514861,122.63,122.56,6.17986124]
[1769409907808,3.66211208,122.63,122.57,2.56303653]
[1769409908209,3.66211208,122.63,122.56,6.17986124]
[1769409908811,6.22514861,122.63,122.56,6.17986124]
[1769409909110,3.66211208,122.62,122.56,6.17986124]
[1769409909708,3.66211208,122.62,122.56,6.17459293]
[1769409909904,3.66211208,122.62,122.57,2.55776822]
[1769409910109,6.2198803,122.63,122.58,3.61682471]
[1769409910704,3.66211208,122.6,122.54,13.52869293]
[1769409910910,3.66211208,122.6,122.54,6.17459293]
[1769409911111,3.66211208,122.6,122.55,3.61682471]
[1769409911412,3.66211208,122.6,122.55,6.17459293]
[1769409912108,6.2198803,122.62,122.55,6.17459293]
[1769409912302,0.0605231,122.59,122.55,6.17459293]
[1769409912709,0.0605231,122.59,122.55,3.61682471]
[1769409915412,0.0605231,122.59,122.56,6.17459293]
[1769409916213,0.0605231,122.59,122.56,3.61682471]
[1769409919808,0.0605231,122.59,122.54,3.22597986]
[1769409920010,5.85549788,122.59,122.54,3.22597986]
[1769409920612,3.29772966,122.59,122.54,3.22597986]
[1769409922214,0.0605231,122.59,122.54,3.22597986]
[1769409923911,0.0605231,122.59,122.54,10.57997986]
[1769409924115,2.55776822,122.62,122.56,3.22597986]
[1769409924618,5.79497478,122.63,122.57,3.22597986]
[1769409925016,2.55776822,122.63,122.57,3.22597986]
[1769409925220,3.23720656,122.65,122.59,3.22597986]
[1769409925519,3.23720656,122.65,122.59,5.83932861]
[1769409926018,0.06165103,122.63,122.59,3.28156039]
[1769409926215,5.79497478,122.62,122.59,0.05558053]
[1769409926420,3.23720656,122.59,122.53,3.22597986]
[1769409926620,5.79497478,122.59,122.53,3.22597986]
[1769409927414,3.23720656,122.59,122.54,3.22597986]
[1769409927821,0.05578744,122.57,122.54,3.22597986]
[1769409930621,2.55776822,122.6,122.54,3.22597986]
[1769409930823,2.55776822,122.61,122.55,3.22597986]
[1769409931024,10.58660656,122.63,122.56,3.22597986]
[1769409931025,2.55776822,122.62,122.56,3.22597986]
[1769409931526,2.55776822,122.61,122.56,3.22597986]
[1769409932529,5.79497478,122.6,122.54,3.22597986]
[1769409932716,5.79497478,122.59,122.54,3.22597986]
[1769409932923,2.55776822,122.58,122.54,3.22597986]
[1769409935234,5.79497478,122.59,122.54,3.22597986]
[1769409936335,3.32205157,122.58,122.52,3.12854821]
[1769409936534,2.55776822,122.57,122.52,3.12854821]
[1769409937234,5.87981979,122.58,122.52,3.12854821]
[1769409937430,2.55776822,122.59,122.53,3.12854821]
[1769409938228,2.55776822,122.58,122.53,3.12854821]
[1769409941030,2.55776822,122.54,122.49,10.48564821]
[1769409941233,5.87981979,122.56,122.5,3.12854821]
[1769409942333,2.55776822,122.54,122.48,3.12854821]
[1769409942537,5.87981979,122.54,122.48,3.12854821]
[1769409944841,2.55776822,122.53,122.48,3.12854821]
[1769409945348,2.55776822,122.52,122.46,3.12854821]
[1769409945947,2.55776822,122.52,122.46,5.68631643]
[1769409946442,5.87981979,122.53,122.46,5.68631643]
[1769409948746,5.87981979,122.53,122.46,13.04521643]
[1769409948947,3.32205157,122.53,122.47,5.68631643]
[1769409949144,3.32205157,122.53,122.48,2.55776822]
[1769409952940,3.32205157,122.53,122.48,5.68631643]
[1769409955853,3.32205157,122.53,122.48,3.12854821]
[1769409956850,3.32205157,122.53,122.47,7.3584]
[1769409957046,3.32205157,122.52,122.46,5.68631643]
[1769409957849,5.87981979,122.52,122.46,3.12854821]
[1769409958250,3.32205157,122.5,122.44,3.12854821]
[1769409958450,5.87981979,122.5,122.44,3.12854821]
[1769409959153,3.32205157,122.5,122.44,3.12854821]
[1769409960053,5.87981979,122.5,122.43,2.55776822]
[1769409960260,3.32205157,122.5,122.45,5.68631643]
[1769409961752,3.32205157,122.5,122.45,3.12854821]
[1769409961952,3.32205157,122.5,122.44,2.55776822]
[1769409962159,5.87981979,122.5,122.43,13.04701643]
[1769409964662,3.32205157,122.5,122.44,2.55776822]
[1769409965058,3.20269814,122.49,122.41,10.64475194]
[1769409965252,3.20269814,122.47,122.41,5.84072016]
[1769409965462,3.20269814,122.47,122.39,329.14295194]
[1769409965758,3.20269814,122.46,122.4,2.55776822]
[1769409966367,3.20269814,122.46,122.39,5.84072016]
[1769409966557,5.76046636,122.46,122.39,5.84072016]
[1769409966757,3.20269814,122.45,122.39,5.84072016]
[1769409968177,3.20269814,122.45,122.39,3.28295194]
[1769409968567,3.20269814,122.45,122.4,2.55776822]
[1769409968870,3.20269814,122.47,122.41,5.84072016]
[1769409969055,3.20269814,122.47,122.42,2.55776822]
[1769409969460,3.20269814,122.47,122.41,3.28295194]
[1769409969659,3.20269814,122.47,122.41,5.84735696]
[1769409971054,3.20269814,122.47,122.42,2.56440502]
[1769409971865,3.20269814,122.49,122.44,2.56440502]
[1769409972663,3.20269814,122.49,122.43,5.84735696]
[1769409974165,3.20269814,122.49,122.44,2.56440502]
[1769409976257,10.56059814,122.49,122.44,2.56440502]
[1769409976467,3.20269814,122.48,122.43,2.56440502]
[1769409982364,3.4714417,122.5,122.44,3.43785516]
[1769409982569,3.4714417,122.5,122.47,2.56440502]
[1769409982864,220.44104531,122.51,122.47,2.56440502]
[1769409984384,78.75292952,122.51,122.49,2.56440502]
[1769409984578,78.75292952,122.51,122.48,2.56440502]
[1769409986777,3.4714417,122.5,122.47,2.56440502]
[1769409988872,78.75292952,122.51,122.47,2.56440502]
[1769409989174,78.75292952,122.51,122.48,2.56440502]
[1769409991780,3.4714417,122.54,122.4,114.5276]
[1769409992082,3.4714417,122.49,122.45,2.56440502]
[1769409992382,3.4714417,122.49,122.46,2.56440502]
[1769409992880,3.4714417,122.49,122.43,2.56440502]
[1769409993887,3.4714417,122.49,122.43,5.97484679]
[1769409995788,13.39344672,122.49,122.43,3.41044177]
[1769409995982,5.94645222,122.48,122.43,3.41044177]
[1769409997880,3.3820472,122.48,122.43,3.41044177]
[1769409998582,3.3820472,122.47,122.41,5.97484679]
[1769410000286,3.3820472,122.47,122.41,3.41044177]
[1769410000680,5.94645222,122.47,122.41,3.41044177]
[1769410001593,3.3820472,122.47,122.41,3.41044177]
[1769410001888,3.3820472,122.47,122.41,5.97484679]
[1769410002488,3.3820472,122.47,122.41,3.41044177]
[1769410002690,3.3820472,122.47,122.41,5.97484679]
[1769410003091,3.3820472,122.49,122.44,3.41044177]
[1769410005091,3.3820472,122.49,122.39,114.5385]
[1769410005092,117.05500502,122.45,122.36,320.08809914]
[1769410005386,5.94645222,122.4,122.34,3.41044177]
[1769410006489,0.05879455,122.38,122.34,3.41044177]
[1769410006886,0.05879455,122.38,122.36,0.05507296]
[1769410008085,0.05879455,122.38,122.34,3.41044177]
[1769410008086,2.62319957,122.38,122.34,3.41044177]
[1769410008285,0.05879455,122.38,122.34,3.41044177]
[1769410011890,2.56440502,122.41,122.35,3.35164722]
[1769410012291,3.3820472,122.42,122.36,3.35164722]
[1769410012292,5.94645222,122.42,122.36,3.35164722]
[1769410015399,2.56440502,122.41,122.36,3.35164722]
[1769410021008,5.94645222,122.42,122.36,3.35164722]
[1769410021307,3.3820472,122.42,122.36,3.35164722]
[1769410021507,5.94645222,122.42,122.36,3.35164722]
[1769410022313,2.56440502,122.41,122.36,3.35164722]
[1769410022609,5.94645222,122.41,122.36,3.35164722]
[1769410023600,2.56440502,122.42,122.36,3.35164722]
[1769410024005,2.56440502,122.43,122.37,3.24324386]
[1769410024211,5.98577827,122.44,122.38,3.24324386]
[1769410026209,3.42137325,122.46,122.41,3.24324386]
[1769410026408,3.42137325,122.48,122.42,5.80764888]
[1769410026608,3.42137325,122.48,122.43,5.80764888]
[1769410031412,5.98577827,122.5,122.44,3.24324386]
[1769410031612,3.42137325,122.52,122.48,2.56225942]
[1769410032003,3.42137325,122.52,122.47,2.56225942]
[1769410033916,3.42137325,122.54,122.48,2.56225942]
[1769410034819,5.98363267,122.54,122.47,2.56225942]
[1769410036419,5.98363267,122.54,122.47,5.80550328]
[1769410036812,3.42137325,122.53,122.47,3.24324386]
[1769410037012,3.42137325,122.53,122.47,5.80550328]
[1769410037719,2.56225942,122.52,122.47,3.24324386]
[1769410040921,5.98363267,122.53,122.47,3.24324386]
[1769410042617,2.56225942,122.53,122.48,3.30529698]
[1769410042823,6.10030224,122.54,122.48,3.30529698]
[1769410043523,2.56225942,122.53,122.48,3.30529698]
[1769410044313,3.53804282,122.52,122.46,3.30529698]
[1769410044623,3.53804282,122.52,122.49,0.06030643]
[1769410044820,0.05522197,122.5,122.49,0.06030643]
[1769410046626,2.56225942,122.53,122.49,0.06030643]
[1769410047726,6.10030224,122.53,122.49,0.06030643]
[1769410055328,3.53804282,122.53,122.49,0.06030643]
[1769410057630,6.12613148,122.55,122.49,0.06030643]
[1769410057829,3.56387206,122.54,122.49,0.06030643]
[1769410059630,6.12613148,122.56,122.5,2.99653194]
[1769410060526,6.12613148,122.56,122.52,0.05946899]
[1769410061027,216.70446484,122.57,122.52,3.05600093]
[1769410061224,3.56387206,122.58,122.52,3.05600093]
[1769410061429,2.56225942,122.57,122.52,3.05600093]
[1769410062030,3.56387206,122.58,122.52,3.05600093]
[1769410062635,3.56387206,122.58,122.52,5.61826035]
[1769410063033,3.56387206,122.58,122.52,12.97396035]
[1769410064130,3.56387206,122.58,122.52,10.41170093]
[1769410064336,6.12613148,122.58,122.52,3.05600093]
[1769410067031,6.12613148,122.57,122.52,3.05600093]
[1769410067634,6.12613148,122.57,122.52,2.99653194]
[1769410068037,6.12613148,122.57,122.53,0.05570331]
[1769410068439,3.56387206,122.57,122.53,0.05570331]
[1769410070837,3.56387206,122.6,122.53,3.05223525]
[1769410071040,6.12613148,122.59,122.53,3.05223525]
[1769410071337,6.12613148,122.59,122.53,2.99653194]
[1769410071739,6.12613148,122.59,122.55,0.05280547]
[1769410071941,3.56387206,122.58,122.55,0.05280547]
[1769410074150,6.12613148,122.57,122.51,10.35263194]
[1769410075650,6.12613148,122.57,122.53,0.05996699]
[1769410078248,2.56225942,122.56,122.53,0.05996699]
[1769410079050,6.12613148,122.56,122.53,0.05996699]
[1769410079251,2.56225942,122.54,122.49,10.35393194]
[1769410079558,6.12613148,122.54,122.49,10.35393194]
[1769410079754,6.12613148,122.54,122.49,2.99653194]
[1769410079949,6.12613148,122.53,122.47,10.41519893]
[1769410080151,3.56387206,122.52,122.46,325.78]
[1769410080355,114.3944,122.56,122.43,331.68941236]
[1769410080356,3.56387206,122.49,122.43,331.68941236]
[1769410080657,2.56225942,122.48,122.43,331.68941236]
[1769410080950,6.12613148,122.49,122.43,331.68941236]
[1769410081351,3.56387206,122.51,122.44,3.05649893]
[1769410081548,0.05720934,122.47,122.44,3.05649893]
[1769410084657,6.12613148,122.51,122.45,3.32215843]
[1769410084858,2.56225942,122.5,122.45,3.32215843]
[1769410085958,2.56225942,122.5,122.46,0.05656889]
[1769410086157,2.56225942,122.49,122.46,0.05656889]
[1769410086755,2.56225942,122.5,122.46,0.05656889]
[1769410092366,2.56225942,122.48,122.46,0.05656889]
[1769410092554,2.56225942,122.47,122.43,321.27181343]
[1769410092752,2.56225942,122.45,122.41,3.32215843]
[1769410092957,5.94321545,122.46,122.41,3.32215843]
[1769410093557,5.94557856,122.46,122.41,3.32215843]
[1769410093959,0.05236186,122.45,122.41,3.32215843]
[1769410095759,2.61698439,122.45,122.41,3.32215843]
[1769410096562,0.05236186,122.45,122.41,3.32215843]
[1769410110372,0.05236186,122.45,122.42,3.36153384]
[1769410110576,5.90612075,122.48,122.42,3.36153384]
[1769410110782,3.34149822,122.48,122.42,5.92615637]
[1769410111975,3.34149822,122.48,122.44,0.05551267]
[1769410113981,3.28125278,122.5,122.44,3.40096131]
[1769410114177,5.84587531,122.5,122.44,3.40096131]
[1769410114974,5.84587531,122.5,122.44,10.76156131]
[1769410115578,3.28125278,122.5,122.44,10.76156131]
[1769410118583,5.84587531,122.5,122.44,10.76156131]
[1769410119183,3.28125278,122.49,122.44,10.76156131]
[1769410124599,0.05925805,122.48,122.44,10.76156131]
[1769410124796,3.34051083,122.48,122.44,0.05551267]
[1769410125000,5.90513336,122.48,122.44,0.05551267]
[1769410125500,3.34051083,122.48,122.44,0.05551267]
[1769410131308,0.05925805,122.48,122.44,5.96558384]
[1769410131505,0.05925805,122.48,122.44,3.40096131]
[1769410133198,0.05925805,122.48,122.44,10.76166131]
[1769410138299,3.28125278,122.52,122.47,3.34544864]
[1769410138707,5.84587531,122.52,122.47,3.34544864]
[1769410138909,3.28125278,122.49,122.44,10.70584864]
[1769410139813,3.28125278,122.49,122.45,0.06205405]
[1769410140406,3.28125278,122.51,122.46,3.34544864]
[1769410140617,3.28125278,122.53,122.46,3.34544864]
[1769410141016,3.28125278,122.53,122.47,3.34544864]
[1769410141716,3.28125278,122.53,122.49,0.05663924]
[1769410142112,3.28125278,122.51,122.45,3.34544864]
[1769410142413,3.28125278,122.51,122.45,5.91007117]
[1769410143016,3.28125278,122.51,122.45,13.26997117]
[1769410143218,3.46776044,122.5,122.45,10.70534864]
[1769410143420,6.03238297,122.5,122.45,10.70534864]
[1769410144117,3.46776044,122.5,122.45,10.70534864]
[1769410144820,3.46776044,122.5,122.45,3.34544864]
[1769410146119,6.03238297,122.5,122.45,3.34544864]
[1769410146819,6.03238297,122.5,122.43,9.92562253]
[1769410146820,3.46776044,122.49,122.43,10.6314356]
[1769410147021,6.03238297,122.49,122.43,10.6314356]
[1769410148218,6.03238297,122.48,122.43,3.2704356]
[1769410149720,3.46776044,122.48,122.43,3.2704356]
[1769410150024,6.03238297,122.5,122.43,3.2704356]
[1769410150427,6.03238297,122.5,122.44,3.2704356]
[1769410150428,3.46776044,122.5,122.44,3.2704356]
[1769410150627,3.46776044,122.5,122.45,3.2704356]
[1769410151422,3.46776044,122.5,122.45,5.83505813]